[Event "Titled Tuesday Blitz November 29 Early 2022"]
[White "Visakh N R"]
[Black "Jimenez Almeida, Luis David"]
[WhiteFideId "25012223"]
[BlackFideId "22242244"]
[WhiteElo "2466"]
[BlackElo "2158"]
[Result "1/2-1/2"]
[Round "02"]
[TimeControl "180+1"]
[Date "2022.11.30"]
[WhiteClock "0:00:12"]
[BlackClock "0:00:06"]

1. e4 {[%clk 0:03:00]}  Nf6 {[%clk 0:02:54]} 2. Nc3 {[%clk 0:02:56]}  d5 {[%clk 0:02:53]} 3. e5 {[%clk 0:02:54]}  d4 {[%clk 0:02:53]} 4. exf6 {[%clk 0:02:51]}  dxc3 {[%clk 0:02:53]} 5. fxe7 {[%clk 0:02:48]}  cxd2+ {[%clk 0:02:52]} 6. Qxd2 {[%clk 0:02:48]}  Bxe7 {[%clk 0:02:49]} 7. Qxd8+ {[%clk 0:02:47]}  Bxd8 {[%clk 0:02:50]} 8. Bf4 {[%clk 0:02:46]}  O-O {[%clk 0:02:48]} 9. O-O-O {[%clk 0:02:46]}  Be6 {[%clk 0:02:46]} 10. Nf3 {[%clk 0:02:46]}  Re8 {[%clk 0:02:33]} 11. Bd3 {[%clk 0:02:42]}  h6 {[%clk 0:02:23]} 12. Rhe1 {[%clk 0:02:38]}  Nc6 {[%clk 0:02:11]} 13. Bc4 {[%clk 0:02:37]}  Rc8 {[%clk 0:01:58]} 14. Bxe6 {[%clk 0:02:35]}  Rxe6 {[%clk 0:01:54]} 15. Rxe6 {[%clk 0:02:32]}  fxe6 {[%clk 0:01:55]} 16. Ne5 {[%clk 0:02:28]}  Ne7 {[%clk 0:01:13]} 17. Rd7 {[%clk 0:02:21]}  Nd5 {[%clk 0:01:10]} 18. Bd2 {[%clk 0:02:20]}  Bf6 {[%clk 0:01:08]} 19. Ng4 {[%clk 0:02:20]}  Bd4 {[%clk 0:01:01]} 20. c4 {[%clk 0:02:17]}  h5 {[%clk 0:00:58]} 21. cxd5 {[%clk 0:02:14]}  hxg4 {[%clk 0:00:58]} 22. dxe6 {[%clk 0:02:14]}  Bxf2 {[%clk 0:00:57]} 23. Bc3 {[%clk 0:02:09]}  Be3+ {[%clk 0:00:53]} 24. Kc2 {[%clk 0:02:08]}  Bh6 {[%clk 0:00:52]} 25. e7 {[%clk 0:02:01]}  Re8 {[%clk 0:00:39]} 26. Rxc7 {[%clk 0:02:01]}  Bf4 {[%clk 0:00:36]} 27. Rxb7 {[%clk 0:01:57]}  Bxh2 {[%clk 0:00:36]} 28. Rxa7 {[%clk 0:01:57]}  Kf7 {[%clk 0:00:29]} 29. a4 {[%clk 0:01:55]}  Bg1 {[%clk 0:00:27]} 30. Rd7 {[%clk 0:01:53]}  Ke6 {[%clk 0:00:26]} 31. Rd1 {[%clk 0:01:52]}  Ba7 {[%clk 0:00:24]} 32. Re1+ {[%clk 0:01:51]}  Kf5 {[%clk 0:00:23]} 33. Bxg7 {[%clk 0:01:48]}  Kf4 {[%clk 0:00:24]} 34. b4 {[%clk 0:01:43]}  Kg3 {[%clk 0:00:23]} 35. Re2 {[%clk 0:01:43]}  Bf2 {[%clk 0:00:22]} 36. Be5+ {[%clk 0:01:43]}  Kxg2 {[%clk 0:00:22]} 37. Bd6 {[%clk 0:01:34]}  Kf3 {[%clk 0:00:20]} 38. Re6 {[%clk 0:01:33]}  g3 {[%clk 0:00:20]} 39. Rf6+ {[%clk 0:01:33]}  Ke2 {[%clk 0:00:20]} 40. Re6+ {[%clk 0:01:21]}  Kf3 {[%clk 0:00:20]} 41. Rf6+ {[%clk 0:00:52]}  Ke2 {[%clk 0:00:21]} 42. Rg6 {[%clk 0:00:53]}  Kf3 {[%clk 0:00:20]} 43. Bc5 {[%clk 0:00:39]}  Bxc5 {[%clk 0:00:17]} 44. bxc5 {[%clk 0:00:40]}  Rxe7 {[%clk 0:00:17]} 45. Kb3 {[%clk 0:00:41]}  g2 {[%clk 0:00:18]} 46. c6 {[%clk 0:00:34]}  Re6 {[%clk 0:00:18]} 47. Rxe6 {[%clk 0:00:23]}  g1=Q {[%clk 0:00:18]} 48. Kc4 {[%clk 0:00:24]}  Qb6 {[%clk 0:00:17]} 49. Kd5 {[%clk 0:00:24]}  Kf4 {[%clk 0:00:17]} 50. Re7 {[%clk 0:00:21]}  Qa5+ {[%clk 0:00:16]} 51. Ke6 {[%clk 0:00:21]}  Qxa4 {[%clk 0:00:15]} 52. c7 {[%clk 0:00:20]}  Qc6+ {[%clk 0:00:15]} 53. Kf7 {[%clk 0:00:20]}  Kf5 {[%clk 0:00:16]} 54. Kf8 {[%clk 0:00:20]}  Kf6 {[%clk 0:00:13]} 55. Rf7+ {[%clk 0:00:20]}  Ke6 {[%clk 0:00:13]} 56. Re7+ {[%clk 0:00:21]}  Kd6 {[%clk 0:00:13]} 57. Kf7 {[%clk 0:00:21]}  Qa8 {[%clk 0:00:11]} 58. Kf6 {[%clk 0:00:18]}  Qf8+ {[%clk 0:00:10]} 59. Rf7 {[%clk 0:00:18]}  Qc8 {[%clk 0:00:10]} 60. Kg6 {[%clk 0:00:17]}  Ke5 {[%clk 0:00:10]} 61. Re7+ {[%clk 0:00:16]}  Kd6 {[%clk 0:00:10]} 62. Rf7 {[%clk 0:00:16]}  Ke6 {[%clk 0:00:10]} 63. Rf6+ {[%clk 0:00:17]}  Ke5 {[%clk 0:00:11]} 64. Rf7 {[%clk 0:00:17]}  Qg8+ {[%clk 0:00:11]} 65. Rg7 {[%clk 0:00:17]}  Qe6+ {[%clk 0:00:11]} 66. Kh7 {[%clk 0:00:17]}  Qh3+ {[%clk 0:00:10]} 67. Kg6 {[%clk 0:00:15]}  Qg4+ {[%clk 0:00:10]} 68. Kh7 {[%clk 0:00:13]}  Qh5+ {[%clk 0:00:10]} 69. Kg8 {[%clk 0:00:13]}  Qe8+ {[%clk 0:00:10]} 70. Kh7 {[%clk 0:00:14]}  Kf6 {[%clk 0:00:10]} 71. c8=Q {[%clk 0:00:12]}  Qxc8 {[%clk 0:00:09]} 72. Rg6+ {[%clk 0:00:12]}  Kf5 {[%clk 0:00:09]} 73. Rg7 {[%clk 0:00:13]}  Qf8 {[%clk 0:00:08]} 74. Rg5+ {[%clk 0:00:12]}  Ke6 {[%clk 0:00:07]} 75. Rg6+ {[%clk 0:00:12]}  Ke5 {[%clk 0:00:07]} 76. Rg5+ {[%clk 0:00:12]}  Kf4 {[%clk 0:00:07]} 77. Rg6 {[%clk 0:00:11]}  Qf5 {[%clk 0:00:07]} 78. Kg7 {[%clk 0:00:12]}  Qd7+ {[%clk 0:00:07]} 79. Kf6 {[%clk 0:00:11]}  Qd6+ {[%clk 0:00:07]} 80. Kf7 {[%clk 0:00:11]}  Qc7+ {[%clk 0:00:07]} 81. Ke6 {[%clk 0:00:10]}  Ke4 {[%clk 0:00:07]} 82. Rf6 {[%clk 0:00:10]}  Qc6+ {[%clk 0:00:07]} 83. Ke7 {[%clk 0:00:11]}  Qc7+ {[%clk 0:00:07]} 84. Ke6 {[%clk 0:00:11]}  Qd8 {[%clk 0:00:07]} 85. Rg6 {[%clk 0:00:08]}  Qd5+ {[%clk 0:00:08]} 86. Kf6 {[%clk 0:00:08]}  Kf4 {[%clk 0:00:08]} 87. Kg7 {[%clk 0:00:08]}  Kf5 {[%clk 0:00:07]} 88. Rf6+ {[%clk 0:00:08]}  Ke5 {[%clk 0:00:08]} 89. Rg6 {[%clk 0:00:08]}  Qf3 {[%clk 0:00:07]} 90. Rg5+ {[%clk 0:00:08]}  Ke6 {[%clk 0:00:07]} 91. Rg6+ {[%clk 0:00:09]}  Ke7 {[%clk 0:00:08]} 92. Kh6 {[%clk 0:00:10]}  Qh3+ {[%clk 0:00:08]} 93. Kg5 {[%clk 0:00:10]}  Qg3+ {[%clk 0:00:08]} 94. Kf5 {[%clk 0:00:10]}  Qd3+ {[%clk 0:00:08]} 95. Kg5 {[%clk 0:00:11]}  Kf7 {[%clk 0:00:08]} 96. Rf6+ {[%clk 0:00:11]}  Kg7 {[%clk 0:00:09]} 97. Rf4 {[%clk 0:00:11]}  Qe3 {[%clk 0:00:07]} 98. Kf5 {[%clk 0:00:11]}  Qc5+ {[%clk 0:00:07]} 99. Ke4 {[%clk 0:00:11]}  Kg6 {[%clk 0:00:07]} 100. Rg4+ {[%clk 0:00:11]}  Kf6 {[%clk 0:00:06]} 101. Rf4+ {[%clk 0:00:12]}  Kg5 {[%clk 0:00:06]} 102. Rf3 {[%clk 0:00:11]}  Qc6+ {[%clk 0:00:07]} 103. Ke3 {[%clk 0:00:12]}  Kg4 {[%clk 0:00:07]} 104. Rf4+ {[%clk 0:00:12]}  Kg3 {[%clk 0:00:07]} 105. Rd4 {[%clk 0:00:12]}  Qc3+ {[%clk 0:00:07]} 106. Rd3 {[%clk 0:00:12]}  Qe5+ {[%clk 0:00:07]} 107. Kd2+ {[%clk 0:00:13]}  Kf2 {[%clk 0:00:08]} 108. Rc3 {[%clk 0:00:12]}  Qd4+ {[%clk 0:00:07]} 109. Kc2 {[%clk 0:00:10]}  Ke2 {[%clk 0:00:08]} 110. Kb3 {[%clk 0:00:11]}  Kd2 {[%clk 0:00:07]} 111. Rc2+ {[%clk 0:00:11]}  Kd3 {[%clk 0:00:08]} 112. Rb2 {[%clk 0:00:11]}  Qb6+ {[%clk 0:00:08]} 113. Ka2 {[%clk 0:00:11]}  Qa5+ {[%clk 0:00:07]} 114. Kb3 {[%clk 0:00:12]}  Qb5+ {[%clk 0:00:08]} 115. Ka3 {[%clk 0:00:12]}  Qc5+ {[%clk 0:00:07]} 116. Kb3 {[%clk 0:00:13]}  Qc3+ {[%clk 0:00:07]} 117. Ka2 {[%clk 0:00:13]}  Qc4+ {[%clk 0:00:07]} 118. Kb1 {[%clk 0:00:12]}  Qa4 {[%clk 0:00:05]} 119. Ra2 {[%clk 0:00:11]}  Qb3+ {[%clk 0:00:05]} 120. Rb2 {[%clk 0:00:11]}  Qd1+ {[%clk 0:00:06]} 121. Ka2 {[%clk 0:00:12]}  Kc3 {[%clk 0:00:06]} 1/2-1/2


[Site "https://www.chess.com"]

[Event "Titled Tuesday Blitz November 29 Early 2022"]
[White "Yeremyan, Alen"]
[Black "Bashirli, Saadat"]
[WhiteFideId "13308998"]
[BlackFideId "13429990"]
[WhiteElo "2159"]
[BlackElo "1408"]
[Result "1-0"]
[Round "02"]
[TimeControl "180+1"]
[Date "2022.11.30"]
[WhiteClock "0:00:40"]
[BlackClock "0:00:05"]

1. c4 {[%clk 0:03:00]}  e6 {[%clk 0:02:59]} 2. e4 {[%clk 0:02:57]}  c6 {[%clk 0:02:48]} 3. Nc3 {[%clk 0:02:58]}  d5 {[%clk 0:02:47]} 4. d4 {[%clk 0:02:56]}  Bb4 {[%clk 0:02:43]} 5. Bd3 {[%clk 0:02:51]}  dxe4 {[%clk 0:02:38]} 6. Bxe4 {[%clk 0:02:49]}  Nf6 {[%clk 0:02:39]} 7. Bc2 {[%clk 0:02:50]}  O-O {[%clk 0:02:39]} 8. Ne2 {[%clk 0:02:50]}  c5 {[%clk 0:02:38]} 9. O-O {[%clk 0:02:48]}  cxd4 {[%clk 0:02:38]} 10. Nxd4 {[%clk 0:02:48]}  Nc6 {[%clk 0:02:39]} 11. Nxc6 {[%clk 0:02:47]}  bxc6 {[%clk 0:02:40]} 12. Qf3 {[%clk 0:02:40]}  Qb6 {[%clk 0:02:35]} 13. Be3 {[%clk 0:02:37]}  Qc7 {[%clk 0:02:35]} 14. Bg5 {[%clk 0:02:31]}  Nd7 {[%clk 0:02:29]} 15. Ne4 {[%clk 0:02:14]}  f5 {[%clk 0:02:20]} 16. Nc3 {[%clk 0:02:00]}  Ne5 {[%clk 0:02:18]} 17. Qe2 {[%clk 0:01:59]}  Bd6 {[%clk 0:02:17]} 18. Rad1 {[%clk 0:01:55]}  Ng4 {[%clk 0:02:15]} 19. h3 {[%clk 0:01:53]}  Nf6 {[%clk 0:01:51]} 20. Rfe1 {[%clk 0:01:37]}  Rb8 {[%clk 0:01:40]} 21. Bb3 {[%clk 0:01:23]}  Kh8 {[%clk 0:01:25]} 22. Qe3 {[%clk 0:01:15]}  a5 {[%clk 0:01:18]} 23. c5 {[%clk 0:01:15]}  Be7 {[%clk 0:01:14]} 24. Bf4 {[%clk 0:01:09]}  Qb7 {[%clk 0:00:51]} 25. Bxb8 {[%clk 0:01:09]}  Qxb8 {[%clk 0:00:51]} 26. Bxe6 {[%clk 0:01:10]}  Bxe6 {[%clk 0:00:50]} 27. Qxe6 {[%clk 0:01:10]}  Bxc5 {[%clk 0:00:50]} 28. Qxc6 {[%clk 0:01:06]}  Bb4 {[%clk 0:00:44]} 29. a3 {[%clk 0:01:05]}  Bxc3 {[%clk 0:00:41]} 30. bxc3 {[%clk 0:01:06]}  Qb2 {[%clk 0:00:38]} 31. Qc5 {[%clk 0:01:02]}  Kg8 {[%clk 0:00:33]} 32. Qxa5 {[%clk 0:00:59]}  Ne4 {[%clk 0:00:32]} 33. Qd5+ {[%clk 0:00:56]}  Kh8 {[%clk 0:00:32]} 34. Qxf5 {[%clk 0:00:56]}  Nf6 {[%clk 0:00:14]} 35. c4 {[%clk 0:00:52]}  g6 {[%clk 0:00:12]} 36. Qe5 {[%clk 0:00:51]}  Qxa3 {[%clk 0:00:11]} 37. Qe7 {[%clk 0:00:45]}  Qa8 {[%clk 0:00:08]} 38. Rd6 {[%clk 0:00:44]}  Nh5 {[%clk 0:00:05]} 39. Rd7 {[%clk 0:00:40]} 1-0


[Site "https://www.chess.com"]

[Event "Titled Tuesday Blitz November 29 Early 2022"]
[White "Yuan, Qingyu"]
[Black "Tworuszka, Michal"]
[WhiteFideId "8609772"]
[BlackFideId "1117858"]
[WhiteElo "2359"]
[BlackElo "2415"]
[Result "1-0"]
[Round "02"]
[TimeControl "180+1"]
[Date "2022.11.30"]
[WhiteClock "0:00:33"]
[BlackClock "0:00:02"]

1. e4 {[%clk 0:03:00]}  c5 {[%clk 0:02:57]} 2. Nf3 {[%clk 0:03:01]}  d6 {[%clk 0:02:58]} 3. d4 {[%clk 0:03:01]}  cxd4 {[%clk 0:02:59]} 4. Nxd4 {[%clk 0:03:02]}  Nf6 {[%clk 0:02:59]} 5. Nc3 {[%clk 0:03:03]}  a6 {[%clk 0:03:00]} 6. Rg1 {[%clk 0:03:04]}  e5 {[%clk 0:02:55]} 7. Nb3 {[%clk 0:03:03]}  Be6 {[%clk 0:02:47]} 8. g4 {[%clk 0:03:02]}  d5 {[%clk 0:02:48]} 9. exd5 {[%clk 0:02:52]}  Nxd5 {[%clk 0:02:49]} 10. Bd2 {[%clk 0:02:47]}  Nc6 {[%clk 0:02:24]} 11. Bg2 {[%clk 0:02:25]}  Be7 {[%clk 0:02:09]} 12. Nxd5 {[%clk 0:01:59]}  Bxd5 {[%clk 0:02:02]} 13. Be3 {[%clk 0:01:58]}  Bxg2 {[%clk 0:01:59]} 14. Qxd8+ {[%clk 0:01:56]}  Rxd8 {[%clk 0:01:55]} 15. Rxg2 {[%clk 0:01:57]}  Nb4 {[%clk 0:01:13]} 16. f3 {[%clk 0:01:51]}  Nd5 {[%clk 0:01:04]} 17. Bd2 {[%clk 0:01:41]}  O-O {[%clk 0:00:51]} 18. O-O-O {[%clk 0:01:39]}  Rfe8 {[%clk 0:00:29]} 19. Re2 {[%clk 0:01:20]}  Bf8 {[%clk 0:00:15]} 20. Na5 {[%clk 0:01:14]}  Rd7 {[%clk 0:00:08]} 21. c3 {[%clk 0:01:08]}  f6 {[%clk 0:00:07]} 22. Kc2 {[%clk 0:01:08]}  b6 {[%clk 0:00:06]} 23. Nb3 {[%clk 0:01:06]}  Rc8 {[%clk 0:00:06]} 24. Ree1 {[%clk 0:00:59]}  Nb4+ {[%clk 0:00:05]} 25. Kb1 {[%clk 0:01:00]}  Nd3 {[%clk 0:00:06]} 26. Rf1 {[%clk 0:00:52]}  Nc5 {[%clk 0:00:04]} 27. Be3 {[%clk 0:00:48]}  Nxb3 {[%clk 0:00:04]} 28. axb3 {[%clk 0:00:49]}  Rxd1+ {[%clk 0:00:03]} 29. Rxd1 {[%clk 0:00:50]}  Bc5 {[%clk 0:00:02]} 30. Bxc5 {[%clk 0:00:46]}  bxc5 {[%clk 0:00:03]} 31. Rd6 {[%clk 0:00:46]}  a5 {[%clk 0:00:01]} 32. Ra6 {[%clk 0:00:46]}  Kf7 {[%clk 0:00:01]} 33. Rxa5 {[%clk 0:00:45]}  g6 {[%clk 0:00:02]} 34. Ra7+ {[%clk 0:00:44]}  Kg8 {[%clk 0:00:02]} 35. Re7 {[%clk 0:00:42]}  Rf8 {[%clk 0:00:01]} 36. Rc7 {[%clk 0:00:40]}  f5 {[%clk 0:00:01]} 37. Rxc5 {[%clk 0:00:40]}  e4 {[%clk 0:00:01]} 38. fxe4 {[%clk 0:00:35]}  fxe4 {[%clk 0:00:02]} 39. Re5 {[%clk 0:00:35]}  Rf4 {[%clk 0:00:03]} 40. g5 {[%clk 0:00:32]}  Kf7 {[%clk 0:00:03]} 41. b4 {[%clk 0:00:32]}  Rf1+ {[%clk 0:00:01]} 42. Ka2 {[%clk 0:00:32]}  Re1 {[%clk 0:00:02]} 43. b5 {[%clk 0:00:32]}  e3 {[%clk 0:00:02]} 44. b6 {[%clk 0:00:33]}  e2 {[%clk 0:00:02]} 45. b7 {[%clk 0:00:33]} 1-0


[Site "https://www.chess.com"]

[Event "Titled Tuesday Blitz November 29 Early 2022"]
[White "Yurasova, Daria"]
[Black "Sargissyan, Sargis"]
[WhiteFideId "34146919"]
[BlackFideId "13303210"]
[WhiteElo "2097"]
[BlackElo "2109"]
[Result "1-0"]
[Round "02"]
[TimeControl "180+1"]
[Date "2022.11.30"]
[WhiteClock "0:00:13"]
[BlackClock "0:00:01"]

1. d4 {[%clk 0:03:00]}  Nf6 {[%clk 0:02:58]} 2. c4 {[%clk 0:03:00]}  g6 {[%clk 0:02:59]} 3. f3 {[%clk 0:02:58]}  d5 {[%clk 0:02:52]} 4. cxd5 {[%clk 0:02:56]}  Nxd5 {[%clk 0:02:53]} 5. e4 {[%clk 0:02:56]}  Nb6 {[%clk 0:02:54]} 6. Nc3 {[%clk 0:02:54]}  Bg7 {[%clk 0:02:54]} 7. Be3 {[%clk 0:02:49]}  O-O {[%clk 0:02:55]} 8. Qd2 {[%clk 0:02:49]}  Nc6 {[%clk 0:02:54]} 9. O-O-O {[%clk 0:02:42]}  e5 {[%clk 0:02:50]} 10. d5 {[%clk 0:02:41]}  Nd4 {[%clk 0:02:50]} 11. Nge2 {[%clk 0:02:40]}  Nc4 {[%clk 0:02:44]} 12. Qd3 {[%clk 0:02:37]}  Nxe3 {[%clk 0:02:43]} 13. Qxe3 {[%clk 0:02:38]}  c5 {[%clk 0:02:38]} 14. Kb1 {[%clk 0:02:27]}  b5 {[%clk 0:02:33]} 15. h4 {[%clk 0:02:22]}  b4 {[%clk 0:02:26]} 16. Na4 {[%clk 0:02:21]}  Qa5 {[%clk 0:02:24]} 17. b3 {[%clk 0:02:20]}  c4 {[%clk 0:02:22]} 18. h5 {[%clk 0:02:06]}  Bd7 {[%clk 0:02:21]} 19. Nb2 {[%clk 0:02:03]}  cxb3 {[%clk 0:02:17]} 20. axb3 {[%clk 0:02:03]}  Rfc8 {[%clk 0:02:02]} 21. hxg6 {[%clk 0:01:53]}  fxg6 {[%clk 0:02:01]} 22. Nxd4 {[%clk 0:01:47]}  exd4 {[%clk 0:01:59]} 23. Qd2 {[%clk 0:01:44]}  d3 {[%clk 0:01:42]} 24. Bxd3 {[%clk 0:01:41]}  Rc3 {[%clk 0:01:23]} 25. Bc4 {[%clk 0:01:40]}  Rc8 {[%clk 0:01:08]} 26. d6+ {[%clk 0:01:17]}  R8xc4 {[%clk 0:01:06]} 27. bxc4 {[%clk 0:01:14]}  Rb3 {[%clk 0:01:04]} 28. Qd5+ {[%clk 0:00:47]}  Qxd5 {[%clk 0:01:03]} 29. exd5 {[%clk 0:00:48]}  Rxb2+ {[%clk 0:00:58]} 30. Kc1 {[%clk 0:00:48]}  Rxg2 {[%clk 0:00:53]} 31. Rd2 {[%clk 0:00:36]}  Rxd2 {[%clk 0:00:25]} 32. Kxd2 {[%clk 0:00:37]}  Bd4 {[%clk 0:00:20]} 33. Kd3 {[%clk 0:00:21]}  Bc5 {[%clk 0:00:20]} 34. Re1 {[%clk 0:00:20]}  Bxd6 {[%clk 0:00:18]} 35. Kd4 {[%clk 0:00:21]}  Bg3 {[%clk 0:00:17]} 36. Re7 {[%clk 0:00:19]}  Bf5 {[%clk 0:00:15]} 37. c5 {[%clk 0:00:16]}  b3 {[%clk 0:00:15]} 38. Rb7 {[%clk 0:00:14]}  Bf2+ {[%clk 0:00:02]} 39. Kc4 {[%clk 0:00:14]}  Bc2 {[%clk 0:00:01]} 40. d6 {[%clk 0:00:13]} 1-0


[Site "https://www.chess.com"]

[Event "Titled Tuesday Blitz November 29 Early 2022"]
[White "Zaloznyy, Mike"]
[Black "Kalashian, David"]
[WhiteFideId "2023075"]
[BlackFideId "13302418"]
[WhiteElo "2126"]
[BlackElo "2490"]
[Result "0-1"]
[Round "02"]
[TimeControl "180+1"]
[Date "2022.11.30"]
[WhiteClock "0:00:15"]
[BlackClock "0:01:48"]

1. Nf3 {[%clk 0:02:57]}  Nf6 {[%clk 0:02:59]} 2. g3 {[%clk 0:02:55]}  d5 {[%clk 0:02:59]} 3. Bg2 {[%clk 0:02:54]}  g6 {[%clk 0:02:43]} 4. b3 {[%clk 0:02:52]}  Bg7 {[%clk 0:02:44]} 5. Bb2 {[%clk 0:02:51]}  O-O {[%clk 0:02:45]} 6. c4 {[%clk 0:02:47]}  c6 {[%clk 0:02:41]} 7. O-O {[%clk 0:02:45]}  Bg4 {[%clk 0:02:42]} 8. Ne5 {[%clk 0:02:44]}  Bf5 {[%clk 0:02:40]} 9. d3 {[%clk 0:02:43]}  Nfd7 {[%clk 0:02:38]} 10. f4 {[%clk 0:02:31]}  Nxe5 {[%clk 0:02:30]} 11. Bxe5 {[%clk 0:02:21]}  Bxe5 {[%clk 0:02:22]} 12. fxe5 {[%clk 0:02:21]}  dxc4 {[%clk 0:02:23]} 13. bxc4 {[%clk 0:02:08]}  Qd4+ {[%clk 0:02:21]} 14. e3 {[%clk 0:01:51]}  Qxa1 {[%clk 0:02:09]} 15. g4 {[%clk 0:00:58]}  Be6 {[%clk 0:02:03]} 16. d4 {[%clk 0:00:39]}  Bxc4 {[%clk 0:02:01]} 17. Re1 {[%clk 0:00:35]}  Qb2 {[%clk 0:01:54]} 18. h4 {[%clk 0:00:32]}  Bd5 {[%clk 0:01:50]} 19. e4 {[%clk 0:00:20]}  Bxa2 {[%clk 0:01:50]} 20. Nd2 {[%clk 0:00:19]}  Qxd4+ {[%clk 0:01:49]} 21. Kh1 {[%clk 0:00:15]}  Rd8 {[%clk 0:01:48]} 0-1


[Site "https://www.chess.com"]

[Event "Titled Tuesday Blitz November 29 Early 2022"]
[White "Zatonskih, Anna"]
[Black "Grapsa, Georgia"]
[WhiteFideId "14101572"]
[BlackFideId "4206436"]
[WhiteElo "2362"]
[BlackElo "1877"]
[Result "0-1"]
[Round "02"]
[TimeControl "180+1"]
[Date "2022.11.30"]
[WhiteClock "0:01:23"]
[BlackClock "0:01:13"]

1. e4 {[%clk 0:03:00]}  d5 {[%clk 0:02:55]} 2. exd5 {[%clk 0:03:00]}  Qxd5 {[%clk 0:02:56]} 3. Nc3 {[%clk 0:02:59]}  Qa5 {[%clk 0:02:55]} 4. d4 {[%clk 0:02:59]}  Nf6 {[%clk 0:02:55]} 5. Bc4 {[%clk 0:02:58]}  c6 {[%clk 0:02:55]} 6. Qe2 {[%clk 0:02:53]}  Bf5 {[%clk 0:02:54]} 7. Nf3 {[%clk 0:02:52]}  e6 {[%clk 0:02:53]} 8. Bd2 {[%clk 0:02:52]}  Bb4 {[%clk 0:02:53]} 9. O-O-O {[%clk 0:02:44]}  O-O {[%clk 0:02:52]} 10. Ne5 {[%clk 0:02:33]}  Nbd7 {[%clk 0:02:51]} 11. Nxd7 {[%clk 0:02:29]}  Nxd7 {[%clk 0:02:50]} 12. g4 {[%clk 0:02:28]}  Bg6 {[%clk 0:02:47]} 13. h4 {[%clk 0:02:28]}  h5 {[%clk 0:02:33]} 14. Rhg1 {[%clk 0:02:20]}  hxg4 {[%clk 0:02:19]} 15. Qxg4 {[%clk 0:02:15]}  Qf5 {[%clk 0:02:16]} 16. Qxf5 {[%clk 0:01:59]}  Bxf5 {[%clk 0:02:17]} 17. Bh6 {[%clk 0:01:48]}  Kh7 {[%clk 0:01:41]} 18. Bxg7 {[%clk 0:01:41]}  Rg8 {[%clk 0:01:41]} 19. Be5 {[%clk 0:01:41]}  Nxe5 {[%clk 0:01:31]} 20. dxe5 {[%clk 0:01:42]}  Rxg1 {[%clk 0:01:26]} 21. Rxg1 {[%clk 0:01:42]}  Rd8 {[%clk 0:01:20]} 22. Rg3 {[%clk 0:01:29]}  Rd4 {[%clk 0:01:16]} 23. h5 {[%clk 0:01:23]}  Rxc4 {[%clk 0:01:13]} 0-1


[Site "https://www.chess.com"]

[Event "Titled Tuesday Blitz November 29 Early 2022"]
[White "Zhu, Jiner"]
[Black "Vasques, Antonio Pedro Freixial"]
[WhiteFideId "8608059"]
[BlackFideId "1908332"]
[WhiteElo "2384"]
[BlackElo "2243"]
[Result "1-0"]
[Round "02"]
[TimeControl "180+1"]
[Date "2022.11.30"]
[WhiteClock "0:00:11"]
[BlackClock "0:00:05"]

1. c4 {[%clk 0:03:00]}  Nf6 {[%clk 0:02:53]} 2. Nc3 {[%clk 0:03:00]}  g6 {[%clk 0:02:49]} 3. d4 {[%clk 0:02:59]}  Bg7 {[%clk 0:02:49]} 4. e4 {[%clk 0:02:59]}  d6 {[%clk 0:02:50]} 5. Nf3 {[%clk 0:02:56]}  O-O {[%clk 0:02:50]} 6. Be2 {[%clk 0:02:56]}  Na6 {[%clk 0:02:47]} 7. O-O {[%clk 0:02:56]}  e5 {[%clk 0:02:47]} 8. Be3 {[%clk 0:02:53]}  c6 {[%clk 0:02:44]} 9. Rb1 {[%clk 0:02:34]}  exd4 {[%clk 0:02:30]} 10. Nxd4 {[%clk 0:02:26]}  Nc5 {[%clk 0:02:29]} 11. f3 {[%clk 0:02:25]}  a5 {[%clk 0:02:30]} 12. b3 {[%clk 0:02:23]}  Re8 {[%clk 0:02:24]} 13. Qd2 {[%clk 0:02:23]}  Nfd7 {[%clk 0:02:23]} 14. Rfe1 {[%clk 0:02:18]}  h5 {[%clk 0:02:17]} 15. Bf1 {[%clk 0:02:16]}  Nf8 {[%clk 0:01:57]} 16. Nc2 {[%clk 0:02:14]}  Be5 {[%clk 0:01:49]} 17. Rbd1 {[%clk 0:02:09]}  Qf6 {[%clk 0:01:48]} 18. Ne2 {[%clk 0:01:45]}  Nfe6 {[%clk 0:01:27]} 19. Kh1 {[%clk 0:01:40]}  Qh4 {[%clk 0:01:14]} 20. g3 {[%clk 0:01:34]}  Qf6 {[%clk 0:01:14]} 21. Bg2 {[%clk 0:01:34]}  h4 {[%clk 0:01:00]} 22. f4 {[%clk 0:01:34]}  Bb2 {[%clk 0:00:57]} 23. Ncd4 {[%clk 0:01:32]}  Nxd4 {[%clk 0:00:52]} 24. Nxd4 {[%clk 0:01:30]}  Ba3 {[%clk 0:00:47]} 25. Nc2 {[%clk 0:01:21]}  Bb2 {[%clk 0:00:47]} 26. e5 {[%clk 0:01:18]}  Qh8 {[%clk 0:00:35]} 27. Kg1 {[%clk 0:00:39]}  Bf5 {[%clk 0:00:18]} 28. Nd4 {[%clk 0:00:34]}  Bxd4 {[%clk 0:00:17]} 29. Bxd4 {[%clk 0:00:35]}  Ne6 {[%clk 0:00:18]} 30. exd6 {[%clk 0:00:34]}  Nxd4 {[%clk 0:00:18]} 31. Rxe8+ {[%clk 0:00:33]}  Rxe8 {[%clk 0:00:18]} 32. Qxd4 {[%clk 0:00:33]}  Re1+ {[%clk 0:00:18]} 33. Kf2 {[%clk 0:00:32]}  Rxd1 {[%clk 0:00:16]} 34. Qxd1 {[%clk 0:00:32]}  Qb2+ {[%clk 0:00:16]} 35. Kg1 {[%clk 0:00:26]}  h3 {[%clk 0:00:14]} 36. Bf1 {[%clk 0:00:21]}  Qc3 {[%clk 0:00:11]} 37. Kf2 {[%clk 0:00:17]}  Bc2 {[%clk 0:00:08]} 38. d7 {[%clk 0:00:14]}  Bxd1 {[%clk 0:00:09]} 39. d8=Q+ {[%clk 0:00:13]}  Kg7 {[%clk 0:00:09]} 40. Qxd1 {[%clk 0:00:14]}  Qb2+ {[%clk 0:00:09]} 41. Be2 {[%clk 0:00:12]}  Qxa2 {[%clk 0:00:09]} 42. Qd4+ {[%clk 0:00:12]}  Kh7 {[%clk 0:00:09]} 43. Qc3 {[%clk 0:00:13]}  Qb1 {[%clk 0:00:09]} 44. Bf3 {[%clk 0:00:11]}  Qa2+ {[%clk 0:00:07]} 45. Be2 {[%clk 0:00:11]}  Qb1 {[%clk 0:00:08]} 46. Qf3 {[%clk 0:00:12]}  Qc2 {[%clk 0:00:04]} 47. g4 {[%clk 0:00:12]}  Qc1 {[%clk 0:00:03]} 48. Qxh3+ {[%clk 0:00:12]}  Kg7 {[%clk 0:00:03]} 49. Qf3 {[%clk 0:00:12]}  Qb2 {[%clk 0:00:02]} 50. Kg2 {[%clk 0:00:12]}  Qd4 {[%clk 0:00:03]} 51. h4 {[%clk 0:00:12]}  Qd2 {[%clk 0:00:03]} 52. h5 {[%clk 0:00:12]}  b5 {[%clk 0:00:03]} 53. hxg6 {[%clk 0:00:12]}  fxg6 {[%clk 0:00:03]} 54. cxb5 {[%clk 0:00:12]}  cxb5 {[%clk 0:00:04]} 55. Qb7+ {[%clk 0:00:11]}  Kg8 {[%clk 0:00:04]} 56. Qb8+ {[%clk 0:00:10]}  Kg7 {[%clk 0:00:05]} 57. Qe5+ {[%clk 0:00:11]}  Kg8 {[%clk 0:00:05]} 58. Kf3 {[%clk 0:00:11]} 1-0


[Site "https://www.chess.com"]